[Event "Gibraltar Amateurs A 2020"]
[Site "Caleta"]
[Date "2020.01.21"]
[Round "1.1"]
[White "Poggio, Freddie"]
[Black "Sedgwick, David"]
[Result "1-0"]
[ECO "D02"]
[WhiteElo "1680"]
[BlackElo "1894"]
[Annotator "NA"]
[PlyCount "67"]
[EventDate "2020.01.20"]
[EventType "swiss"]
[EventCountry "GGB"]
[SourceTitle "playchess.com"]
[Source "ChessBase"]
[SourceQuality "1"]
[TimeControl "6600+10"]

1. d4 {[%emt 0:00:02]} d5 {[%emt 0:00:03]} 2. Nf3 {[%emt 0:00:20]} c5 {[%emt 0:00:07]} 3. c3 {[%emt 0:00:19]} Nf6 {[%emt 0:00:06]} 4. Nbd2 {[%emt 0:00:53]} cxd4 {[%emt 0:00:44]} 5. cxd4 {[%emt 0:00:36]} Nc6 {[%emt 0:00:06]} 6. e3 {[%emt 0:00:37]} Bf5 {[%emt 0:00:48]} 7. a3 {[%emt 0:01:00]} e6 {[%emt 0:00:40]} 8. b4 {[%emt 0:02:53]} Bd6 {[%emt 0:00:31]} 9. Be2 {[%emt 0:04:26]} O-O {[%emt 0:00:50]} 10. Nh4 {[%emt 0:01:44]} Ne4 {[%emt 0:01:54]} 11. Nxf5 {[%emt 0:01:42]} exf5 {[%emt 0:00:09]} 12. Nf3 {[%emt 0:07:11]} Nc3 {[%emt 0:03:08]} 13. Qc2 {[%emt 0:01:10]} Nxe2 {[%emt 0:00:11]} 14. Qxe2 {[%emt 0:01:12]} Re8 {[%emt 0:02:26]} 15. Qd3 {[%emt 0:03:58]} Qf6 {[%emt 0:01:41]} 16. O-O {[%emt 0:00:41]} a6 {[%emt 0:02:24]} 17. Bd2 {[%emt 0:01:38]} Re4 {[%emt 0:01:52]} 18. b5 {[%emt 0:03:21]} Ne7 {[%emt 0:02:42]} 19. bxa6 {[%emt 0:03:02]} bxa6 {[%emt 0:00:47]} 20. Bb4 {[%emt 0:00:50]} Bxb4 {[%emt 0:11:05]} 21. axb4 {[%emt 0:00:23]} Re6 {[%emt 0:03:06]} 22. b5 {[%emt 0:03:43]} g5 {[%emt 0:11:49]} 23. Ne5 {[%emt 0:03:57]} Ng6 {[%emt 0:06:12]} 24. Nd7 {[%emt 0:00:25]} Qd8 {[%emt 0:01:31]} 25. Nc5 {[%emt 0:00:35]} Rf6 {[%emt 0:01:31]} 26. bxa6 {[%emt 0:02:12]} Nh4 {[%emt 0:01:19]} 27. Rfb1 {[%emt 0:03:16]} Rh6 {[%emt 0:02:07]} 28. Rb7 {[%emt 0:02:01]} Qd6 {[%emt 0:02:50]} 29. Rd7 {[%emt 0:05:09]} Nf3+ {[%emt 0:01:42]} 30. gxf3 {[%emt 0:00:30]} Qxh2+ {[%emt 0:00:41]} 31. Kf1 {[%emt 0:00:18]} Qh1+ {[%emt 0:00:41]} 32. Ke2 {[%emt 0:00:12]} Qxa1 {[%emt 0:00:19]} 33. Nb3 {[%emt 0:01:44]} Rh1 {[%emt 0:02:38]} 34. Nxa1 {[%emt 0:01:04]} 1-0

[Event "Gibraltar Amateurs A 2020"]
[Site "Caleta"]
[Date "2020.01.21"]
[Round "1.2"]
[White "Nash, Damian"]
[Black "Guardia Bencomo, Tomas"]
[Result "1-0"]
[ECO "B06"]
[WhiteElo "1890"]
[BlackElo "1660"]
[Annotator "NA"]
[PlyCount "49"]
[EventDate "2020.01.20"]
[EventType "swiss"]
[EventCountry "GGB"]
[SourceTitle "playchess.com"]
[Source "ChessBase"]
[SourceQuality "1"]
[TimeControl "6600+10"]

1. e4 {[%emt 0:00:00]} g6 {[%emt 0:00:01]} 2. d4 {[%emt 0:03:34]} Bg7 {[%emt 0:00:34]} 3. c3 {[%emt 0:03:13]} d6 {[%emt 0:01:12]} 4. Be3 {[%emt 0:04:25]} Nf6 {[%emt 0:02:32]} 5. Bd3 {[%emt 0:05:52]} e5 {[%emt 0:05:40]} 6. Ne2 {[%emt 0:07:02]} Ng4 {[%emt 0:08:04]} 7. Qd2 {[%emt 0:13:11]} Nxe3 {[%emt 0:00:49]} 8. Qxe3 {[%emt 0:00:05]} Nc6 {[%emt 0:01:22]} 9. d5 {[%emt 0:01:10]} Ne7 {[%emt 0:00:43]} 10. c4 {[%emt 0:06:25]} O-O {[%emt 0:04:13]} 11. Nbc3 {[%emt 0:01:28]} f5 {[%emt 0:01:04]} 12. f3 {[%emt 0:08:54]} c6 {[%emt 0:03:40]} 13. O-O {[%emt 0:01:42]} f4 {[%emt 0:01:12]} 14. Qf2 {[%emt 0:02:27]} g5 {[%emt 0:01:03]} 15. g4 {[%emt 0:03:40]} fxg3 {[%emt 0:02:04]} 16. Qxg3 {[%emt 0:02:46]} Ng6 {[%emt 0:01:21]} 17. Rad1 {[%emt 0:05:10]} h5 {[%emt 0:05:07]} 18. c5 {[%emt 0:03:32]} h4 {[%emt 0:09:01]} 19. Qg2 {[%emt 0:00:42]} Bh6 {[%emt 0:01:53]} 20. dxc6 {[%emt 0:00:44]} bxc6 {[%emt 0:00:25]} 21. Bc4+ {[%emt 0:00:44]} d5 {[%emt 0:05:25]} 22. exd5 {[%emt 0:05:48]} Kg7 {[%emt 0:01:22]} 23. dxc6 {[%emt 0:02:01]} Qc7 {[%emt 0:04:12]} 24. Ne4 {[%emt 0:01:43]} Qxc6 {[%emt 0:12:53]} 25. Bd5 {[%emt 0:01:45]} 1-0

[Event "Gibraltar Amateurs A 2020"]
[Site "Caleta"]
[Date "2020.01.21"]
[Round "1.3"]
[White "Krause, Helmut"]
[Black "Dumont, Andre"]
[Result "0-1"]
[ECO "E14"]
[WhiteElo "1660"]
[BlackElo "1872"]
[Annotator "NA"]
[PlyCount "62"]
[EventDate "2020.01.20"]
[EventType "swiss"]
[EventCountry "GGB"]
[SourceTitle "playchess.com"]
[Source "ChessBase"]
[SourceQuality "1"]
[TimeControl "6600+10"]

1. d4 {[%emt 0:00:00]} Nf6 {[%emt 0:00:00]} 2. Nf3 {[%emt 0:00:00]} e6 {[%emt 0:01:04]} 3. e3 {[%emt 0:00:02]} b6 {[%emt 0:00:06]} 4. Bd3 {[%emt 0:00:16]} Bb7 {[%emt 0:00:09]} 5. O-O {[%emt 0:00:40]} Be7 {[%emt 0:01:31]} 6. Nbd2 {[%emt 0:00:30]} d5 {[%emt 0:00:43]} 7. b3 {[%emt 0:00:31]} O-O {[%emt 0:00:58]} 8. Bb2 {[%emt 0:00:36]} c5 {[%emt 0:03:05]} 9. Qe2 {[%emt 0:00:43]} Ne4 {[%emt 0:00:32]} 10. c4 {[%emt 0:04:35]} Nd7 {[%emt 0:02:27]} 11. Rac1 {[%emt 0:07:07]} f5 {[%emt 0:05:53]} 12. Ne5 {[%emt 0:02:32]} Nxe5 {[%emt 0:04:55]} 13. dxe5 {[%emt 0:00:08]} Nxd2 {[%emt 0:00:16]} 14. Qxd2 {[%emt 0:00:09]} dxc4 {[%emt 0:00:33]} 15. bxc4 {[%emt 0:02:36]} Qd7 {[%emt 0:26:25]} 16. Rcd1 {[%emt 0:15:41]} Rad8 {[%emt 0:04:47]} 17. Qe2 {[%emt 0:02:58]} Qa4 {[%emt 0:04:43]} 18. a3 {[%emt 0:03:29]} Rd7 {[%emt 0:09:50]} 19. Bc2 {[%emt 0:02:51]} Qc6 {[%emt 0:00:04]} 20. f3 {[%emt 0:04:13]} Rfd8 {[%emt 0:01:35]} 21. Rxd7 {[%emt 0:01:04]} Rxd7 {[%emt 0:01:09]} 22. Rd1 {[%emt 0:00:16]} Bg5 {[%emt 0:04:30]} 23. f4 {[%emt 0:10:19]} Be7 {[%emt 0:00:36]} 24. Rxd7 {[%emt 0:06:04]} Qxd7 {[%emt 0:00:02]} 25. Bc3 {[%emt 0:04:34]} Bc6 {[%emt 0:00:22]} 26. Qd2 {[%emt 0:04:41]} Qb7 {[%emt 0:01:02]} 27. a4 {[%emt 0:06:09]} Qa6 {[%emt 0:00:47]} 28. a5 {[%emt 0:03:48]} Qxc4 {[%emt 0:01:31]} 29. axb6 {[%emt 0:02:43]} axb6 {[%emt 0:00:17]} 30. Bd3 {[%emt 0:01:48]} Qd5 {[%emt 0:02:34]} 31. Bc4 {[%emt 0:04:55]} Qxc4 {[%emt 0:00:59]} 0-1

[Event "Gibraltar Amateurs A 2020"]
[Site "Caleta"]
[Date "2020.01.21"]
[Round "1.4"]
[White "Teh, Wee Zhun"]
[Black "Salas Calvo, Alberto"]
[Result "1-0"]
[ECO "A21"]
[WhiteElo "1857"]
[BlackElo "1645"]
[Annotator "NA"]
[PlyCount "93"]
[EventDate "2020.01.20"]
[EventType "swiss"]
[EventCountry "GGB"]
[SourceTitle "playchess.com"]
[Source "ChessBase"]
[SourceQuality "1"]
[TimeControl "6600+10"]

1. d4 {[%emt 0:00:00]} d6 {[%emt 0:00:05]} 2. c4 {[%emt 0:00:14]} e5 {[%emt 0:00:09]} 3. Nc3 {[%emt 0:00:07]} exd4 {[%emt 0:00:07]} 4. Qxd4 {[%emt 0:00:06]} Nc6 {[%emt 0:00:08]} 5. Qd2 {[%emt 0:00:06]} Nf6 {[%emt 0:00:21]} 6. e4 {[%emt 0:00:45]} Be6 {[%emt 0:00:38]} 7. b3 {[%emt 0:00:54]} Be7 {[%emt 0:05:44]} 8. Bd3 {[%emt 0:09:13]} O-O {[%emt 0:00:52]} 9. Nge2 {[%emt 0:00:08]} a5 {[%emt 0:03:16]} 10. Bb2 {[%emt 0:01:12]} Nb4 {[%emt 0:09:23]} 11. Rd1 {[%emt 0:01:16]} Nxd3+ {[%emt 0:00:46]} 12. Qxd3 {[%emt 0:00:02]} Re8 {[%emt 0:04:15]} 13. O-O {[%emt 0:00:35]} Nd7 {[%emt 0:00:48]} 14. Qc2 {[%emt 0:06:34]} Nc5 {[%emt 0:11:08]} 15. Nd5 {[%emt 0:07:25]} Bf8 {[%emt 0:00:34]} 16. Ng3 {[%emt 0:01:20]} c6 {[%emt 0:01:38]} 17. Ne3 {[%emt 0:01:15]} Qc7 {[%emt 0:06:15]} 18. f3 {[%emt 0:07:42]} Rad8 {[%emt 0:07:30]} 19. Kh1 {[%emt 0:02:44]} Qe7 {[%emt 0:08:07]} 20. Qc3 {[%emt 0:06:57]} Nd7 {[%emt 0:10:00]} 21. Nef5 {[%emt 0:03:57]} Qg5 {[%emt 0:00:49]} 22. Nxd6 {[%emt 0:05:02]} Bxd6 {[%emt 0:00:28]} 23. Rxd6 {[%emt 0:00:21]} Nf6 {[%emt 0:00:54]} 24. Rxd8 {[%emt 0:00:28]} Rxd8 {[%emt 0:00:09]} 25. f4 {[%emt 0:01:42]} Qh6 {[%emt 0:02:32]} 26. Qxa5 {[%emt 0:02:02]} Rf8 {[%emt 0:00:51]} 27. Nf5 {[%emt 0:02:06]} Bxf5 {[%emt 0:01:27]} 28. Qxf5 {[%emt 0:00:23]} Rd8 {[%emt 0:01:45]} 29. h3 {[%emt 0:03:59]} Ne8 {[%emt 0:01:32]} 30. Be5 {[%emt 0:03:16]} Qh4 {[%emt 0:01:09]} 31. Qg4 {[%emt 0:04:03]} Qe7 {[%emt 0:02:57]} 32. Qf3 {[%emt 0:03:05]} Rd2 {[%emt 0:02:24]} 33. a4 {[%emt 0:05:49]} Qd7 {[%emt 0:00:25]} 34. Qg3 {[%emt 0:05:39]} Rd3 {[%emt 0:01:28]} 35. Rf3 {[%emt 0:00:13]} Rd1+ {[%emt 0:00:11]} 36. Kh2 {[%emt 0:00:10]} Qd2 {[%emt 0:00:19]} 37. f5 {[%emt 0:06:53]} Qc1 {[%emt 0:00:44]} 38. Qf4 {[%emt 0:03:30]} Rh1+ {[%emt 0:03:28]} 39. Kg3 {[%emt 0:00:02]} Qe1+ {[%emt 0:00:20]} 40. Rf2 {[%emt 0:00:39]} Rf1 {[%emt 0:01:58]} 41. Bd4 {[%emt 0:00:40]} h5 {[%emt 0:02:23]} 42. Qe3 {[%emt 0:01:52]} Qxe3+ {[%emt 0:01:54]} 43. Bxe3 {[%emt 0:00:16]} Rb1 {[%emt 0:00:34]} 44. Rd2 {[%emt 0:05:57]} Rxb3 {[%emt 0:03:24]} 45. Kf4 {[%emt 0:00:22]} Nf6 {[%emt 0:00:42]} 46. e5 {[%emt 0:00:33]} g5+ {[%emt 0:06:25]} 47. fxg6 {[%emt 0:00:30]} 1-0

[Event "Gibraltar Amateurs A 2020"]
[Site "Caleta"]
[Date "2020.01.21"]
[Round "1.5"]
[White "Clare, Steve"]
[Black "Bryant, Richard B E"]
[Result "1-0"]
[ECO "B00"]
[WhiteElo "1632"]
[BlackElo "1849"]
[Annotator "NA"]
[PlyCount "113"]
[EventDate "2020.01.20"]
[EventType "swiss"]
[EventCountry "GGB"]
[SourceTitle "playchess.com"]
[Source "ChessBase"]
[SourceQuality "1"]
[TimeControl "6600+10"]

1. e4 {[%emt 0:00:00]} e6 {[%emt 0:00:00]} 2. d4 {[%emt 0:00:02]} b6 {[%emt 0:00:00]} 3. Nc3 {[%emt 0:00:52]} Bb7 {[%emt 0:00:07]} 4. f3 {[%emt 0:00:11]} c5 {[%emt 0:00:51]} 5. Be3 {[%emt 0:01:43]} cxd4 {[%emt 0:00:44]} 6. Bxd4 {[%emt 0:00:08]} Nc6 {[%emt 0:00:11]} 7. Be3 {[%emt 0:02:13]} d6 {[%emt 0:00:35]} 8. a3 {[%emt 0:01:11]} Be7 {[%emt 0:00:49]} 9. Bc4 {[%emt 0:00:58]} Nf6 {[%emt 0:01:42]} 10. Nge2 {[%emt 0:01:04]} O-O {[%emt 0:01:00]} 11. Qd2 {[%emt 0:02:16]} Qd7 {[%emt 0:00:48]} 12. O-O {[%emt 0:03:07]} Rac8 {[%emt 0:00:57]} 13. Ba2 {[%emt 0:00:48]} Na5 {[%emt 0:01:20]} 14. Rad1 {[%emt 0:02:38]} Rfd8 {[%emt 0:00:47]} 15. Qd3 {[%emt 0:02:33]} Ne8 {[%emt 0:02:33]} 16. Bf4 {[%emt 0:08:57]} Nc7 {[%emt 0:02:01]} 17. e5 {[%emt 0:01:39]} Ba6 {[%emt 0:01:08]} 18. Qd2 {[%emt 0:05:08]} d5 {[%emt 0:00:44]} 19. b4 {[%emt 0:01:21]} Nc4 {[%emt 0:00:23]} 20. Qc1 {[%emt 0:07:01]} Qe8 {[%emt 0:02:18]} 21. Nd4 {[%emt 0:00:59]} Bb7 {[%emt 0:02:31]} 22. Bb3 {[%emt 0:03:50]} b5 {[%emt 0:03:31]} 23. Nce2 {[%emt 0:02:00]} Na8 {[%emt 0:04:53]} 24. c3 {[%emt 0:03:34]} a5 {[%emt 0:04:14]} 25. Bxc4 {[%emt 0:03:13]} Rxc4 {[%emt 0:00:35]} 26. Bg5 {[%emt 0:02:05]} Nc7 {[%emt 0:06:46]} 27. Bxe7 {[%emt 0:01:38]} Qxe7 {[%emt 0:00:17]} 28. f4 {[%emt 0:01:26]} f5 {[%emt 0:04:57]} 29. exf6 {[%emt 0:01:04]} Qxf6 {[%emt 0:00:05]} 30. Qe3 {[%emt 0:06:37]} a4 {[%emt 0:07:06]} 31. Rd3 {[%emt 0:00:17]} Bc8 {[%emt 0:00:35]} 32. g4 {[%emt 0:02:20]} Re8 {[%emt 0:01:54]} 33. g5 {[%emt 0:03:04]} Qg6 {[%emt 0:00:39]} 34. Nf3 {[%emt 0:07:03]} Re4 {[%emt 0:01:13]} 35. Qd2 {[%emt 0:02:16]} e5 {[%emt 0:18:12]} 36. Nxe5 {[%emt 0:04:06]} Qb6+ {[%emt 0:00:07]} 37. Kh1 {[%emt 0:04:05]} Bb7 {[%emt 0:08:03]} 38. h4 {[%emt 0:06:40]} d4 {[%emt 0:03:58]} 39. Kh2 {[%emt 0:00:13]} dxc3 {[%emt 0:01:22]} 40. Nxc3 {[%emt 0:00:57]} R4xe5 {[%emt 0:10:01]} 41. fxe5 {[%emt 0:00:11]} Qe6 {[%emt 0:00:17]} 42. Re1 {[%emt 0:02:39]} Qf5 {[%emt 0:06:08]} 43. Rd8 {[%emt 0:02:22]} Bc8 {[%emt 0:00:00]} 44. Rxe8+ {[%emt 0:00:41]} Nxe8 {[%emt 0:00:00]} 45. Qe3 {[%emt 0:01:17]} Bb7 {[%emt 0:00:32]} 46. Nxb5 {[%emt 0:01:08]} Qc2+ {[%emt 0:00:35]} 47. Re2 {[%emt 0:02:52]} Qc4 {[%emt 0:00:23]} 48. Nd6 {[%emt 0:00:17]} Qxh4+ {[%emt 0:00:10]} 49. Qh3 {[%emt 0:00:34]} Qxh3+ {[%emt 0:02:37]} 50. Kxh3 {[%emt 0:00:06]} Nxd6 {[%emt 0:00:12]} 51. exd6 {[%emt 0:00:03]} Bc8+ {[%emt 0:00:06]} 52. Kg3 {[%emt 0:00:03]} Kf8 {[%emt 0:00:47]} 53. Re7 {[%emt 0:00:07]} Bf5 {[%emt 0:00:14]} 54. Kf4 {[%emt 0:00:09]} Bc2 {[%emt 0:00:30]} 55. Ke5 {[%emt 0:00:02]} Bb3 {[%emt 0:00:09]} 56. Kd4 {[%emt 0:00:15]} h6 {[%emt 0:00:23]} 57. Rxg7 {[%emt 0:00:41]} 1-0

[Event "Gibraltar Amateurs A 2020"]
[Site "Caleta"]
[Date "2020.01.21"]
[Round "1.6"]
[White "Nebel, Uwe"]
[Black "Kearsley, Raymond J"]
[Result "1-0"]
[ECO "B01"]
[WhiteElo "1847"]
[BlackElo "1611"]
[Annotator "NA"]
[PlyCount "108"]
[EventDate "2020.01.20"]
[EventType "swiss"]
[EventCountry "GGB"]
[SourceTitle "playchess.com"]
[Source "ChessBase"]
[SourceQuality "1"]
[TimeControl "6600+10"]

1. e4 {[%emt 0:00:00]} d5 {[%emt 0:00:07]} 2. exd5 {[%emt 0:00:06]} Nf6 {[%emt 0:00:08]} 3. d4 {[%emt 0:00:09]} Bg4 {[%emt 0:00:08]} 4. Nf3 {[%emt 0:05:59]} Qxd5 {[%emt 0:03:25]} 5. Nc3 {[%emt 0:03:14]} Qf5 {[%emt 0:07:42]} 6. Be2 {[%emt 0:03:42]} Nc6 {[%emt 0:01:59]} 7. d5 {[%emt 0:06:01]} O-O-O {[%emt 0:00:32]} 8. Nd4 {[%emt 0:01:20]} Nxd4 {[%emt 0:01:50]} 9. Qxd4 {[%emt 0:00:23]} Bxe2 {[%emt 0:01:41]} 10. Nxe2 {[%emt 0:00:47]} Qxd5 {[%emt 0:00:46]} 11. Qxd5 {[%emt 0:03:28]} Nxd5 {[%emt 0:00:30]} 12. Bd2 {[%emt 0:00:39]} e5 {[%emt 0:01:19]} 13. O-O-O {[%emt 0:00:28]} Bc5 {[%emt 0:00:54]} 14. Nc3 {[%emt 0:10:45]} Nxc3 {[%emt 0:02:45]} 15. Bxc3 {[%emt 0:00:08]} Bd4 {[%emt 0:00:26]} 16. Bxd4 {[%emt 0:01:39]} Rxd4 {[%emt 0:01:40]} 17. Rxd4 {[%emt 0:00:33]} exd4 {[%emt 0:00:08]} 18. Re1 {[%emt 0:01:29]} Kd7 {[%emt 0:01:06]} 19. Kd2 {[%emt 0:00:33]} Kd6 {[%emt 0:02:45]} 20. Kd3 {[%emt 0:01:59]} c5 {[%emt 0:00:16]} 21. b4 {[%emt 0:05:00]} Rc8 {[%emt 0:04:51]} 22. Re4 {[%emt 0:03:55]} cxb4 {[%emt 0:05:02]} 23. Rxd4+ {[%emt 0:00:19]} Ke6 {[%emt 0:02:43]} 24. Re4+ {[%emt 0:04:07]} Kd6 {[%emt 0:04:58]} 25. Rxb4 {[%emt 0:00:34]} b6 {[%emt 0:00:44]} 26. Rd4+ {[%emt 0:04:13]} Ke6 {[%emt 0:00:31]} 27. c3 {[%emt 0:12:14]} Rc5 {[%emt 0:04:09]} 28. Ra4 {[%emt 0:04:15]} Rc7 {[%emt 0:04:37]} 29. Re4+ {[%emt 0:01:35]} Kf6 {[%emt 0:02:43]} 30. f3 {[%emt 0:02:27]} Rd7+ {[%emt 0:05:04]} 31. Kc2 {[%emt 0:04:57]} Rd5 {[%emt 0:01:02]} 32. Ra4 {[%emt 0:00:51]} Rd7 {[%emt 0:00:50]} 33. Re4 {[%emt 0:01:12]} Rd5 {[%emt 0:04:33]} 34. c4 {[%emt 0:02:34]} Rd7 {[%emt 0:05:31]} 35. Kc3 {[%emt 0:00:55]} Rd1 {[%emt 0:00:57]} 36. Re2 {[%emt 0:00:53]} Rd7 {[%emt 0:00:46]} 37. Kb4 {[%emt 0:01:25]} Rd3 {[%emt 0:02:11]} 38. Kb5 {[%emt 0:01:34]} Ra3 {[%emt 0:07:55]} 39. Kb4 {[%emt 0:02:24]} Rd3 {[%emt 0:01:17]} 40. a4 {[%emt 0:01:47]} a6 {[%emt 0:04:08]} 41. a5 {[%emt 0:01:10]} bxa5+ {[%emt 0:03:20]} 42. Kxa5 {[%emt 0:00:10]} Rd6 {[%emt 0:01:51]} 43. c5 {[%emt 0:01:05]} Rc6 {[%emt 0:00:47]} 44. Kb4 {[%emt 0:00:14]} Rc7 {[%emt 0:05:47]} 45. Kc4 {[%emt 0:01:00]} Rb7 {[%emt 0:03:49]} 46. c6 {[%emt 0:02:08]} Rb1 {[%emt 0:00:14]} 47. Kc5 {[%emt 0:01:02]} Rc1+ {[%emt 0:02:00]} 48. Kb6 {[%emt 0:01:29]} Rb1+ {[%emt 0:00:21]} 49. Kxa6 {[%emt 0:00:25]} Rc1 {[%emt 0:03:09]} 50. Kb6 {[%emt 0:01:39]} Rb1+ {[%emt 0:00:03]} 51. Kc7 {[%emt 0:00:17]} Rc1 {[%emt 0:00:07]} 52. Re4 {[%emt 0:02:11]} Rc2 {[%emt 0:00:16]} 53. Kb6 {[%emt 0:00:23]} Rb2+ {[%emt 0:00:15]} 54. Kc5 {[%emt 0:00:09]} Rb8 {[%emt 0:02:22]} 1-0

[Event "Gibraltar Amateurs A 2020"]
[Site "Caleta"]
[Date "2020.01.21"]
[Round "1.7"]
[White "Krause, Marianne"]
[Black "Jacob, Sydney J"]
[Result "1-0"]
[ECO "B06"]
[WhiteElo "1609"]
[BlackElo "1816"]
[Annotator "NA"]
[PlyCount "127"]
[EventDate "2020.01.20"]
[EventType "swiss"]
[EventCountry "GGB"]
[SourceTitle "playchess.com"]
[Source "ChessBase"]
[SourceQuality "1"]
[TimeControl "6600+10"]

1. d4 {[%emt 0:00:00]} d6 {[%emt 0:00:27]} 2. Nf3 {[%emt 0:00:03]} g6 {[%emt 0:00:57]} 3. Nc3 {[%emt 0:00:11]} Bg7 {[%emt 0:00:34]} 4. e4 {[%emt 0:00:14]} Nf6 {[%emt 0:00:48]} 5. Be3 {[%emt 0:00:24]} Nc6 {[%emt 0:06:18]} 6. Be2 {[%emt 0:00:48]} Ng4 {[%emt 0:01:47]} 7. Bg5 {[%emt 0:00:12]} h6 {[%emt 0:01:59]} 8. Bh4 {[%emt 0:01:08]} g5 {[%emt 0:00:37]} 9. Bg3 {[%emt 0:00:16]} e5 {[%emt 0:01:18]} 10. dxe5 {[%emt 0:03:27]} Ngxe5 {[%emt 0:00:37]} 11. Nxe5 {[%emt 0:01:18]} Nxe5 {[%emt 0:00:30]} 12. Qd2 {[%emt 0:04:46]} Be6 {[%emt 0:01:06]} 13. O-O-O {[%emt 0:03:22]} a6 {[%emt 0:05:49]} 14. h4 {[%emt 0:02:36]} g4 {[%emt 0:05:47]} 15. Kb1 {[%emt 0:03:21]} h5 {[%emt 0:05:30]} 16. Nd5 {[%emt 0:09:44]} Ng6 {[%emt 0:09:59]} 17. f4 {[%emt 0:17:13]} gxf3 {[%emt 0:05:09]} 18. gxf3 {[%emt 0:00:43]} Bxd5 {[%emt 0:02:45]} 19. Qxd5 {[%emt 0:02:09]} Qf6 {[%emt 0:01:54]} 20. c3 {[%emt 0:04:25]} O-O-O {[%emt 0:02:47]} 21. Qd4 {[%emt 0:05:19]} Qxd4 {[%emt 0:06:07]} 22. cxd4 {[%emt 0:00:20]} Bh6 {[%emt 0:00:19]} 23. Bf2 {[%emt 0:07:06]} c6 {[%emt 0:03:38]} 24. Bf1 {[%emt 0:04:08]} Nf4 {[%emt 0:01:44]} 25. Be1 {[%emt 0:07:46]} Rhg8 {[%emt 0:04:29]} 26. Bf2 {[%emt 0:05:41]} Ng2 {[%emt 0:02:40]} 27. Rg1 {[%emt 0:04:34]} Nf4 {[%emt 0:03:37]} 28. Be3 {[%emt 0:04:09]} Rxg1 {[%emt 0:02:40]} 29. Bxg1 {[%emt 0:00:07]} Rg8 {[%emt 0:00:41]} 30. Bc4 {[%emt 0:03:18]} Rg7 {[%emt 0:04:15]} 31. Bh2 {[%emt 0:02:11]} b5 {[%emt 0:00:47]} 32. Bb3 {[%emt 0:00:57]} Kc7 {[%emt 0:04:13]} 33. Rg1 {[%emt 0:01:58]} Rxg1+ {[%emt 0:05:09]} 34. Bxg1 {[%emt 0:00:11]} Ne6 {[%emt 0:03:14]} 35. Kc2 {[%emt 0:02:18]} Bf4 {[%emt 0:01:16]} 36. Bxe6 {[%emt 0:00:39]} fxe6 {[%emt 0:00:09]} 37. Bf2 {[%emt 0:00:13]} e5 {[%emt 0:00:43]} 38. Kd3 {[%emt 0:01:09]} exd4 {[%emt 0:00:21]} 39. Bxd4 {[%emt 0:01:09]} Bg3 {[%emt 0:00:51]} 40. Bf6 {[%emt 0:00:11]} c5 {[%emt 0:00:20]} 41. b3 {[%emt 0:00:17]} a5 {[%emt 0:00:19]} 42. Bg5 {[%emt 0:00:33]} Kc6 {[%emt 0:00:26]} 43. f4 {[%emt 0:00:48]} d5 {[%emt 0:00:22]} 44. e5 {[%emt 0:01:45]} c4+ {[%emt 0:00:28]} 45. bxc4 {[%emt 0:00:15]} dxc4+ {[%emt 0:00:17]} 46. Ke4 {[%emt 0:00:53]} b4 {[%emt 0:00:45]} 47. f5 {[%emt 0:00:52]} b3 {[%emt 0:00:26]} 48. axb3 {[%emt 0:00:53]} cxb3 {[%emt 0:00:05]} 49. Bc1 {[%emt 0:00:17]} Bxh4 {[%emt 0:00:55]} 50. f6 {[%emt 0:00:25]} Kd7 {[%emt 0:00:39]} 51. Kf5 {[%emt 0:00:27]} Ke8 {[%emt 0:00:25]} 52. Kg6 {[%emt 0:00:20]} Be1 {[%emt 0:00:50]} 53. e6 {[%emt 0:00:26]} Bb4 {[%emt 0:01:10]} 54. Kxh5 {[%emt 0:00:09]} a4 {[%emt 0:00:20]} 55. Kg6 {[%emt 0:00:11]} a3 {[%emt 0:00:09]} 56. f7+ {[%emt 0:00:06]} Kd8 {[%emt 0:00:14]} 57. Bg5+ {[%emt 0:00:10]} Kc7 {[%emt 0:00:20]} 58. e7 {[%emt 0:00:02]} Bxe7 {[%emt 0:00:25]} 59. Bxe7 {[%emt 0:00:05]} b2 {[%emt 0:00:03]} 60. f8=Q {[%emt 0:00:20]} b1=Q+ {[%emt 0:00:07]} 61. Kh5 {[%emt 0:00:12]} Qh1+ {[%emt 0:00:25]} 62. Kg4 {[%emt 0:00:04]} Qg2+ {[%emt 0:00:09]} 63. Kf5 {[%emt 0:00:24]} Qf3+ {[%emt 0:00:17]} 64. Kg6 {[%emt 0:00:02]} 1-0

[Event "Gibraltar Amateurs A 2020"]
[Site "Caleta"]
[Date "2020.01.21"]
[Round "1.8"]
[White "Olaizola, Miguel"]
[Black "Savage, Neil"]
[Result "1-0"]
[ECO "A27"]
[WhiteElo "1809"]
[BlackElo "1608"]
[Annotator "NA"]
[PlyCount "63"]
[EventDate "2020.01.20"]
[EventType "swiss"]
[EventCountry "GGB"]
[SourceTitle "playchess.com"]
[Source "ChessBase"]
[SourceQuality "1"]
[TimeControl "6600+10"]

1. c4 {[%emt 0:01:57]} e5 {[%emt 0:00:23]} 2. Nc3 {[%emt 0:00:28]} Nc6 {[%emt 0:00:40]} 3. Nf3 {[%emt 0:01:03]} Bb4 {[%emt 0:03:12]} 4. Nd5 {[%emt 0:01:15]} Bc5 {[%emt 0:06:02]} 5. b4 {[%emt 0:03:17]} Nxb4 {[%emt 0:10:08]} 6. Nxb4 {[%emt 0:04:41]} e4 {[%emt 0:02:16]} 7. Nd3 {[%emt 0:18:15]} exd3 {[%emt 0:03:02]} 8. exd3 {[%emt 0:02:02]} Nf6 {[%emt 0:09:14]} 9. d4 {[%emt 0:03:40]} Be7 {[%emt 0:07:44]} 10. Be2 {[%emt 0:05:31]} O-O {[%emt 0:01:43]} 11. O-O {[%emt 0:00:09]} d6 {[%emt 0:08:53]} 12. Bb2 {[%emt 0:03:45]} c6 {[%emt 0:06:35]} 13. a4 {[%emt 0:10:07]} Bf5 {[%emt 0:14:03]} 14. Nh4 {[%emt 0:07:58]} Be6 {[%emt 0:01:21]} 15. Nf3 {[%emt 0:03:26]} Bf5 {[%emt 0:02:56]} 16. a5 {[%emt 0:00:30]} b6 {[%emt 0:05:37]} 17. axb6 {[%emt 0:14:04]} Qxb6 {[%emt 0:01:44]} 18. Ba3 {[%emt 0:01:18]} Nd7 {[%emt 0:05:18]} 19. d3 {[%emt 0:06:46]} Rfb8 {[%emt 0:02:21]} 20. Qa4 {[%emt 0:02:14]} Qc7 {[%emt 0:01:42]} 21. Rab1 {[%emt 0:05:48]} a5 {[%emt 0:01:56]} 22. Rxb8+ {[%emt 0:01:25]} Rxb8 {[%emt 0:02:23]} 23. Nd2 {[%emt 0:00:18]} Qa7 {[%emt 0:01:59]} 24. Qxc6 {[%emt 0:02:09]} Qxd4 {[%emt 0:01:09]} 25. Ne4 {[%emt 0:03:16]} Rb6 {[%emt 0:03:21]} 26. Qa8+ {[%emt 0:01:44]} Rb8 {[%emt 0:01:04]} 27. Qxa5 {[%emt 0:00:32]} Bxe4 {[%emt 0:00:31]} 28. dxe4 {[%emt 0:00:06]} Qxe4 {[%emt 0:00:21]} 29. Bf3 {[%emt 0:00:29]} Qxc4 {[%emt 0:01:23]} 30. Rc1 {[%emt 0:00:30]} Ne5 {[%emt 0:02:10]} 31. Rxc4 {[%emt 0:02:29]} Rb1+ {[%emt 0:00:21]} 32. Rc1 {[%emt 0:00:07]} 1-0